[Event "*** Qualifier 3: Titled Tuesday 3|2 Blitz"]
[Site "Chess.com"]
[Date "2017.04.18"]
[Round "4"]
[White "chipmunknau"]
[Black "alekroth64"]
[Result "1-0"]
[WhiteElo "2407"]
[BlackElo "2266"]
[TimeControl "180+2"]
[EndTime "13:50:09 PDT"]
[Termination "chipmunknau won by resignation"]

1. Nf3 {[%clk 0:03:02]} 1... Nf6 {[%clk 0:02:57.1]} 2. d4 {[%clk 0:03:02.7]}
2... e6 {[%clk 0:02:57.7]} 3. g3 {[%clk 0:03:03.2]} 3... d5 {[%clk 0:02:57.6]}
4. Bg2 {[%clk 0:03:04.1]} 4... c5 {[%clk 0:02:55.3]} 5. O-O {[%clk 0:03:04.1]}
5... Nc6 {[%clk 0:02:54.3]} 6. c4 {[%clk 0:03:01.1]} 6... cxd4 {[%clk
0:02:51.3]} 7. Nxd4 {[%clk 0:03:00.1]} 7... Be7 {[%clk 0:02:45.7]} 8. Nc3 {[%clk
0:02:56.9]} 8... O-O {[%clk 0:02:38.5]} 9. cxd5 {[%clk 0:02:57.3]} 9... exd5
{[%clk 0:02:33.4]} 10. Nb3 {[%clk 0:02:53]} 10... Be6 {[%clk 0:02:30.7]} 11. Bf4
{[%clk 0:02:48.4]} 11... Qd7 {[%clk 0:02:21.9]} 12. Rc1 {[%clk 0:02:45.7]} 12...
Rfd8 {[%clk 0:02:20]} 13. Nb5 {[%clk 0:02:43.9]} 13... Nb4 {[%clk 0:02:11.7]}
14. N3d4 {[%clk 0:02:34.4]} 14... Nxa2 {[%clk 0:02:01.3]} 15. Rc7 {[%clk
0:02:34.2]} 15... Qe8 {[%clk 0:02:01.8]} 16. Rxb7 {[%clk 0:02:32.7]} 16... a6
{[%clk 0:01:54.2]} 17. Nc7 {[%clk 0:02:18.5]} 17... Qd7 {[%clk 0:01:54.7]} 18.
Qb3 {[%clk 0:02:15.9]} 18... Nb4 {[%clk 0:01:52.7]} 19. Rxb4 {[%clk 0:02:08.6]}
19... Bxb4 {[%clk 0:01:52.1]} 20. Nxa8 {[%clk 0:02:09.4]} 20... a5 {[%clk
0:01:46.2]} 21. Nb6 {[%clk 0:01:56.2]} 21... Qb7 {[%clk 0:01:41.8]} 22. Na4
{[%clk 0:01:51.1]} 22... Rc8 {[%clk 0:01:39.7]} 23. Nxe6 {[%clk 0:01:48.7]}
23... fxe6 {[%clk 0:01:39.9]} 24. Nc3 {[%clk 0:01:50]} 24... Qe7 {[%clk
0:01:31.3]} 25. Bg5 {[%clk 0:01:47.6]} 25... h6 {[%clk 0:01:29.4]} 26. Bxf6
{[%clk 0:01:44.7]} 26... Qxf6 {[%clk 0:01:30.3]} 27. Na2 {[%clk 0:01:43.5]}
27... Rb8 {[%clk 0:01:26.4]} 28. Nxb4 {[%clk 0:01:38.1]} 28... Rxb4 {[%clk
0:01:26]} 29. Qa3 {[%clk 0:01:32.3]} 29... Rxb2 {[%clk 0:01:20.2]} 30. e3 {[%clk
0:01:33.2]} 30... Rb5 {[%clk 0:01:11.2]} 31. Rc1 {[%clk 0:01:33.7]} 31... Qb2
{[%clk 0:01:07.2]} 32. Rc8+ {[%clk 0:01:27.2]} 32... Kh7 {[%clk 0:01:05.7]} 33.
Qd3+ {[%clk 0:01:24.3]} 33... g6 {[%clk 0:01:01.2]} 34. Rc7+ {[%clk 0:01:23.1]}
34... Kh8 {[%clk 0:00:59.9]} 35. Bf1 {[%clk 0:01:23.9]} 1-0

[Event "*** Qualifier 3: Titled Tuesday 3|2 Blitz"]
[Site "Chess.com"]
[Date "2017.04.18"]
[Round "4"]
[White "FearlessKing64"]
[Black "FearNoEvil12"]
[Result "0-1"]
[WhiteElo "2154"]
[BlackElo "2117"]
[TimeControl "180+2"]
[EndTime "13:50:41 PDT"]
[Termination "FearNoEvil12 won by checkmate"]

1. e4 {[%clk 0:03:02]} 1... a6 {[%clk 0:02:57]} 2. d4 {[%clk 0:03:02.1]} 2... b5
{[%clk 0:02:58.4]} 3. Bd3 {[%clk 0:03:03.5]} 3... Bb7 {[%clk 0:02:59.8]} 4. Qe2
{[%clk 0:03:05]} 4... e6 {[%clk 0:03:00.9]} 5. f4 {[%clk 0:03:05.9]} 5... Nf6
{[%clk 0:03:01.9]} 6. Nf3 {[%clk 0:03:05.6]} 6... c5 {[%clk 0:03:03.3]} 7. c3
{[%clk 0:03:06.3]} 7... Qb6 {[%clk 0:03:04.1]} 8. O-O {[%clk 0:03:00.5]} 8...
Nc6 {[%clk 0:03:04.3]} 9. d5 {[%clk 0:02:53.9]} 9... c4+ {[%clk 0:02:57.8]} 10.
Be3 {[%clk 0:02:42.4]} 10... cxd3 {[%clk 0:02:57.9]} 11. Qxd3 {[%clk 0:02:32]}
11... Qc7 {[%clk 0:02:55.7]} 12. dxc6 {[%clk 0:02:29.7]} 12... Bxc6 {[%clk
0:02:57.2]} 13. Nbd2 {[%clk 0:02:23.6]} 13... d6 {[%clk 0:02:55.1]} 14. Kh1
{[%clk 0:02:07.2]} 14... Be7 {[%clk 0:02:54.9]} 15. Bd4 {[%clk 0:01:55.3]} 15...
O-O {[%clk 0:02:52.1]} 16. e5 {[%clk 0:01:53.9]} 16... Nd5 {[%clk 0:02:51.7]}
17. exd6 {[%clk 0:01:44.2]} 17... Bxd6 {[%clk 0:02:51.7]} 18. Ng5 {[%clk
0:01:40.9]} 18... g6 {[%clk 0:02:50.6]} 19. Nde4 {[%clk 0:01:19.1]} 19... Be7
{[%clk 0:02:42]} 20. Qh3 {[%clk 0:01:13.2]} 20... h5 {[%clk 0:02:39.5]} 21. Nxe6
{[%clk 0:01:09.3]} 21... Qd7 {[%clk 0:02:21.3]} 22. N6g5 {[%clk 0:00:47.3]}
22... Qxh3 {[%clk 0:02:21.2]} 23. Nxh3 {[%clk 0:00:47]} 23... f6 {[%clk
0:02:04.8]} 24. Rae1 {[%clk 0:00:46.1]} 24... Rae8 {[%clk 0:02:03.8]} 25. f5
{[%clk 0:00:33.6]} 25... g5 {[%clk 0:02:02.9]} 26. Nhf2 {[%clk 0:00:32.2]} 26...
Kh7 {[%clk 0:02:01.6]} 27. Bc5 {[%clk 0:00:33.4]} 27... Nf4 {[%clk 0:01:57]} 28.
Bxe7 {[%clk 0:00:32.2]} 28... Rxe7 {[%clk 0:01:57.4]} 29. Nxf6+ {[%clk
0:00:32.4]} 29... Rxf6 {[%clk 0:01:53.7]} 30. Rxe7+ {[%clk 0:00:33.5]} 30... Kh6
{[%clk 0:01:55.3]} 31. Kg1 {[%clk 0:00:24.9]} 31... Bxg2 {[%clk 0:01:52.1]} 32.
Rd1 {[%clk 0:00:25.3]} 32... Bf3 {[%clk 0:01:51]} 33. Rdd7 {[%clk 0:00:23.6]}
33... g4 {[%clk 0:01:49.8]} 34. Ne4 {[%clk 0:00:20.2]} 34... Bxe4 {[%clk
0:01:40.6]} 35. Rxe4 {[%clk 0:00:22.1]} 35... Rxf5 {[%clk 0:01:41]} 36. Rd6+
{[%clk 0:00:22.8]} 36... Kg5 {[%clk 0:01:40.8]} 37. Rxa6 {[%clk 0:00:23.3]}
37... Nh3+ {[%clk 0:01:39.3]} 38. Kg2 {[%clk 0:00:24.6]} 38... Rf2+ {[%clk
0:01:40.1]} 39. Kh1 {[%clk 0:00:24]} 39... Rf1+ {[%clk 0:01:41.2]} 40. Kg2
{[%clk 0:00:25.4]} 40... Rg1# {[%clk 0:01:42.7]} 0-1

[Event "*** Qualifier 3: Titled Tuesday 3|2 Blitz"]
[Site "Chess.com"]
[Date "2017.04.18"]
[Round "4"]
[White "Outsmiter"]
[Black "Saitama_Hero"]
[Result "0-1"]
[WhiteElo "2087"]
[BlackElo "2166"]
[TimeControl "180+2"]
[EndTime "13:50:49 PDT"]
[Termination "Saitama_Hero won by resignation"]

1. e4 {[%clk 0:03:02]} 1... d6 {[%clk 0:02:58.3]} 2. d4 {[%clk 0:03:02.6]} 2...
g6 {[%clk 0:03:00.1]} 3. Nc3 {[%clk 0:03:03.1]} 3... Bg7 {[%clk 0:03:02]} 4. Be2
{[%clk 0:03:04.2]} 4... Nf6 {[%clk 0:03:00.6]} 5. h4 {[%clk 0:03:04.2]} 5... c5
{[%clk 0:03:00]} 6. Be3 {[%clk 0:02:58.9]} 6... cxd4 {[%clk 0:02:59.7]} 7. Bxd4
{[%clk 0:03:00.8]} 7... Nc6 {[%clk 0:03:00.4]} 8. Be3 {[%clk 0:03:00.5]} 8...
Qa5 {[%clk 0:03:00.5]} 9. f3 {[%clk 0:02:58.6]} 9... Be6 {[%clk 0:02:51.7]} 10.
Qd2 {[%clk 0:02:58.5]} 10... O-O {[%clk 0:02:47.1]} 11. a3 {[%clk 0:02:50.5]}
11... Rac8 {[%clk 0:02:43.4]} 12. g4 {[%clk 0:02:49.3]} 12... h5 {[%clk
0:02:36.5]} 13. Bh6 {[%clk 0:02:37.7]} 13... Bxh6 {[%clk 0:02:30.4]} 14. Qxh6
{[%clk 0:02:39.6]} 14... Ne5 {[%clk 0:02:00.6]} 15. Qd2 {[%clk 0:02:04.5]} 15...
hxg4 {[%clk 0:01:38.1]} 16. f4 {[%clk 0:02:04.3]} 16... Nc4 {[%clk 0:01:32.5]}
17. Bxc4 {[%clk 0:02:00.9]} 17... Rxc4 {[%clk 0:01:34.4]} 18. f5 {[%clk
0:02:00.1]} 18... Nxe4 {[%clk 0:01:27.7]} 19. Nxe4 {[%clk 0:01:57.2]} 19...
Rxe4+ {[%clk 0:01:27.4]} 20. Ne2 {[%clk 0:01:53.2]} 20... Qxd2+ {[%clk
0:01:05.4]} 21. Kxd2 {[%clk 0:01:55.1]} 21... Bxf5 {[%clk 0:01:06.8]} 22. h5
{[%clk 0:01:52.3]} 22... Rc8 {[%clk 0:01:04.7]} 23. Rag1 {[%clk 0:01:41]} 23...
Re5 {[%clk 0:00:51.4]} 24. Nc3 {[%clk 0:01:39.3]} 24... d5 {[%clk 0:00:48.5]}
25. hxg6 {[%clk 0:01:39.3]} 25... fxg6 {[%clk 0:00:47.1]} 26. Rc1 {[%clk
0:01:31.5]} 26... d4 {[%clk 0:00:47.1]} 27. Ne2 {[%clk 0:01:30.8]} 27... Re4
{[%clk 0:00:38.4]} 28. Ng3 {[%clk 0:01:29.9]} 28... Rf4 {[%clk 0:00:38.4]} 29.
Rh2 {[%clk 0:01:24.1]} 29... e5 {[%clk 0:00:37.6]} 30. Ne2 {[%clk 0:01:21.4]}
30... Rf3 {[%clk 0:00:36.7]} 31. c3 {[%clk 0:01:11.9]} 31... d3 {[%clk
0:00:35.3]} 32. Ng1 {[%clk 0:01:11.1]} 32... Rf4 {[%clk 0:00:29.3]} 33. Re1
{[%clk 0:01:07.6]} 33... g3 {[%clk 0:00:29.3]} 34. Rg2 {[%clk 0:01:07.4]} 34...
Rf2+ {[%clk 0:00:29.8]} 0-1

[Event "*** Qualifier 3: Titled Tuesday 3|2 Blitz"]
[Site "Chess.com"]
[Date "2017.04.18"]
[Round "4"]
[White "DryCounty"]
[Black "GulamaliRises"]
[Result "0-1"]
[WhiteElo "2455"]
[BlackElo "2457"]
[TimeControl "180+2"]
[EndTime "13:50:54 PDT"]
[Termination "GulamaliRises won by resignation"]

1. Nf3 {[%clk 0:03:02]} 1... Nf6 {[%clk 0:03:00.6]} 2. c4 {[%clk 0:03:02.1]}
2... c6 {[%clk 0:02:58.6]} 3. g3 {[%clk 0:03:01.3]} 3... d5 {[%clk 0:02:59.7]}
4. b3 {[%clk 0:03:00.8]} 4... g6 {[%clk 0:02:55]} 5. Bb2 {[%clk 0:03:00.6]} 5...
Bg7 {[%clk 0:02:56.5]} 6. Bg2 {[%clk 0:03:01.5]} 6... O-O {[%clk 0:02:57.8]} 7.
O-O {[%clk 0:03:02.8]} 7... a5 {[%clk 0:02:59.2]} 8. d3 {[%clk 0:03:03]} 8... a4
{[%clk 0:02:59.6]} 9. b4 {[%clk 0:02:53.6]} 9... dxc4 {[%clk 0:02:54.4]} 10.
dxc4 {[%clk 0:02:53.9]} 10... Qxd1 {[%clk 0:02:55]} 11. Rxd1 {[%clk 0:02:54.7]}
11... Be6 {[%clk 0:02:56.9]} 12. Nbd2 {[%clk 0:02:47.5]} 12... a3 {[%clk
0:02:57.4]} 13. Bc3 {[%clk 0:02:45.6]} 13... Na6 {[%clk 0:02:19]} 14. Nd4 {[%clk
0:02:36.9]} 14... Bd7 {[%clk 0:02:16.8]} 15. Nc2 {[%clk 0:02:36.8]} 15... Nc7
{[%clk 0:01:49.9]} 16. Nb3 {[%clk 0:02:35.1]} 16... Be6 {[%clk 0:01:48]} 17. Be5
{[%clk 0:02:20.3]} 17... Rfc8 {[%clk 0:01:34.3]} 18. Ne3 {[%clk 0:02:18.5]}
18... Ng4 {[%clk 0:01:23.8]} 19. Nxg4 {[%clk 0:02:12.2]} 19... Bxg4 {[%clk
0:01:23.9]} 20. Bxg7 {[%clk 0:02:12.6]} 20... Kxg7 {[%clk 0:01:25.8]} 21. Kf1
{[%clk 0:01:58.7]} 21... Na6 {[%clk 0:01:22.4]} 22. b5 {[%clk 0:01:54.6]} 22...
Nb4 {[%clk 0:01:23.6]} 23. Nc5 {[%clk 0:01:46.1]} 23... cxb5 {[%clk 0:01:19.7]}
24. Bxb7 {[%clk 0:01:40.5]} 24... Rxc5 {[%clk 0:01:20]} 25. Bxa8 {[%clk
0:01:41.3]} 25... bxc4 {[%clk 0:01:11]} 26. f3 {[%clk 0:01:18.2]} 26... Be6
{[%clk 0:00:59.2]} 27. Rab1 {[%clk 0:00:40]} 27... Nxa2 {[%clk 0:00:57.6]} 28.
Ra1 {[%clk 0:00:38.6]} 28... c3 {[%clk 0:00:50.3]} 29. Kf2 {[%clk 0:00:17.7]}
29... c2 {[%clk 0:00:49.2]} 30. Re1 {[%clk 0:00:18.8]} 30... c1=Q {[%clk
0:00:50.2]} 31. Raxc1 {[%clk 0:00:17]} 31... Nxc1 {[%clk 0:00:51.4]} 0-1

[Event "*** Qualifier 3: Titled Tuesday 3|2 Blitz"]
[Site "Chess.com"]
[Date "2017.04.18"]
[Round "4"]
[White "jefferyx"]
[Black "RitvarsReimanis"]
[Result "1-0"]
[WhiteElo "2596"]
[BlackElo "2434"]
[TimeControl "180+2"]
[EndTime "13:51:02 PDT"]
[Termination "jefferyx won by resignation"]

1. e4 {[%clk 0:03:01.3]} 1... c5 {[%clk 0:03:01]} 2. Nf3 {[%clk 0:03:02]} 2...
Nc6 {[%clk 0:03:02.3]} 3. Bb5 {[%clk 0:03:02.4]} 3... g6 {[%clk 0:03:03.6]} 4.
Bxc6 {[%clk 0:03:02]} 4... bxc6 {[%clk 0:03:05.5]} 5. O-O {[%clk 0:02:56.5]}
5... Bg7 {[%clk 0:03:07.4]} 6. c3 {[%clk 0:02:56.3]} 6... Nh6 {[%clk 0:03:08.7]}
7. d4 {[%clk 0:02:53.3]} 7... cxd4 {[%clk 0:03:10.6]} 8. cxd4 {[%clk 0:02:55.2]}
8... f6 {[%clk 0:03:12]} 9. Nc3 {[%clk 0:02:53.8]} 9... O-O {[%clk 0:03:12.7]}
10. b3 {[%clk 0:02:55.7]} 10... d6 {[%clk 0:03:12.8]} 11. Re1 {[%clk 0:02:55.3]}
11... Nf7 {[%clk 0:03:13.7]} 12. Ba3 {[%clk 0:02:55.7]} 12... Qa5 {[%clk
0:03:11.2]} 13. Bb2 {[%clk 0:02:56]} 13... Bg4 {[%clk 0:03:06.7]} 14. h3 {[%clk
0:02:56.1]} 14... Bd7 {[%clk 0:02:58.2]} 15. Rc1 {[%clk 0:02:57.4]} 15... Qh5
{[%clk 0:02:57.5]} 16. Ne2 {[%clk 0:02:44.1]} 16... Ng5 {[%clk 0:02:56.1]} 17.
Nxg5 {[%clk 0:02:36.4]} 17... fxg5 {[%clk 0:02:58]} 18. e5 {[%clk 0:02:28.8]}
18... Qh4 {[%clk 0:02:54.5]} 19. Ng3 {[%clk 0:02:27.8]} 19... Bxh3 {[%clk
0:02:08.7]} 20. gxh3 {[%clk 0:02:27.1]} 20... Rxf2 {[%clk 0:02:03.8]} 21. Kxf2
{[%clk 0:02:25]} 21... Qxh3 {[%clk 0:02:02.6]} 22. Rg1 {[%clk 0:02:23.4]} 22...
Qh2+ {[%clk 0:01:46.7]} 23. Ke3 {[%clk 0:02:24.7]} 23... Rf8 {[%clk 0:01:41.8]}
24. Qe2 {[%clk 0:02:21.7]} 24... Qh4 {[%clk 0:01:41.4]} 25. Rcf1 {[%clk
0:02:18.8]} 25... Rf4 {[%clk 0:01:34.6]} 26. Kd2 {[%clk 0:02:11.4]} 26... dxe5
{[%clk 0:01:29.3]} 27. Kc2 {[%clk 0:02:07.3]} 27... Rg4 {[%clk 0:01:22.3]} 28.
Qc4+ {[%clk 0:02:00]} 28... Kh8 {[%clk 0:01:22.2]} 29. Qxc6 {[%clk 0:02:01.4]}
29... h5 {[%clk 0:01:14.1]} 30. Qh1 {[%clk 0:02:02.2]} 30... Rxg3 {[%clk
0:01:11.7]} 31. Qxh4 {[%clk 0:02:02.5]} 31... gxh4 {[%clk 0:01:13.6]} 32. dxe5
{[%clk 0:01:41.5]} 32... e6 {[%clk 0:01:08.6]} 33. Rxg3 {[%clk 0:01:40]} 33...
hxg3 {[%clk 0:01:09.7]} 34. Rh1 {[%clk 0:01:41.1]} 34... Bh6 {[%clk 0:00:46.5]}
35. Kd3 {[%clk 0:01:32.9]} 35... Kg7 {[%clk 0:00:41.3]} 36. Ke4 {[%clk
0:01:31.2]} 36... g5 {[%clk 0:00:35]} 37. Rxh5 {[%clk 0:01:20.8]} 37... g2
{[%clk 0:00:32.3]} 38. Bd4 {[%clk 0:01:21.3]} 1-0

[Event "*** Qualifier 3: Titled Tuesday 3|2 Blitz"]
[Site "Chess.com"]
[Date "2017.04.18"]
[Round "4"]
[White "fastestmindalive"]
[Black "GMHess"]
[Result "1-0"]
[WhiteElo "2429"]
[BlackElo "2516"]
[TimeControl "180+2"]
[EndTime "13:51:12 PDT"]
[Termination "fastestmindalive won by resignation"]

1. e4 {[%clk 0:03:02]} 1... e5 {[%clk 0:03:00.5]} 2. Nf3 {[%clk 0:03:02.3]} 2...
Nc6 {[%clk 0:03:02]} 3. Bb5 {[%clk 0:03:02.9]} 3... a6 {[%clk 0:03:02.4]} 4. Ba4
{[%clk 0:03:04]} 4... b5 {[%clk 0:03:03.4]} 5. Bb3 {[%clk 0:03:04.5]} 5... Na5
{[%clk 0:03:05]} 6. Nxe5 {[%clk 0:02:53.7]} 6... Nxb3 {[%clk 0:03:04.5]} 7. axb3
{[%clk 0:02:48.1]} 7... Qe7 {[%clk 0:03:05.7]} 8. d4 {[%clk 0:02:38.3]} 8... d6
{[%clk 0:03:03.9]} 9. Nf3 {[%clk 0:02:16.8]} 9... Qxe4+ {[%clk 0:03:04.7]} 10.
Be3 {[%clk 0:02:18]} 10... Bf5 {[%clk 0:02:12.8]} 11. Nc3 {[%clk 0:01:26.4]}
11... Qxc2 {[%clk 0:01:22.9]} 12. Qxc2 {[%clk 0:01:27.7]} 12... Bxc2 {[%clk
0:01:24.8]} 13. Nxb5 {[%clk 0:01:28.7]} 13... Rc8 {[%clk 0:01:22]} 14. Rxa6
{[%clk 0:01:07.5]} 14... Kd7 {[%clk 0:01:02.3]} 15. Kd2 {[%clk 0:00:51.9]} 15...
Bxb3 {[%clk 0:00:52.9]} 16. Rc1 {[%clk 0:00:51.9]} 16... Nf6 {[%clk 0:00:52.7]}
17. Ra7 {[%clk 0:00:44.1]} 17... Ne8 {[%clk 0:00:53.3]} 18. Ne1 {[%clk
0:00:37.7]} 18... Be7 {[%clk 0:00:39.6]} 19. Nd3 {[%clk 0:00:38.2]} 19... h5
{[%clk 0:00:31.7]} 20. Nb4 {[%clk 0:00:33.4]} 20... h4 {[%clk 0:00:18.1]} 21.
Rc3 {[%clk 0:00:32.8]} 21... Be6 {[%clk 0:00:14.6]} 22. d5 {[%clk 0:00:33.2]}
22... Bf5 {[%clk 0:00:12.8]} 23. Na6 {[%clk 0:00:26.6]} 23... Bd8 {[%clk
0:00:13.9]} 24. Bb6 {[%clk 0:00:27.6]} 24... Be4 {[%clk 0:00:10.6]} 25. Naxc7
{[%clk 0:00:25.2]} 25... Nxc7 {[%clk 0:00:10.9]} 26. Nxc7 {[%clk 0:00:26]} 26...
Bxc7 {[%clk 0:00:12.2]} 27. Rcxc7+ {[%clk 0:00:25.8]} 27... Rxc7 {[%clk
0:00:12.6]} 28. Rxc7+ {[%clk 0:00:27.7]} 1-0

[Event "*** Qualifier 3: Titled Tuesday 3|2 Blitz"]
[Site "Chess.com"]
[Date "2017.04.18"]
[Round "4"]
[White "PHOENIXME"]
[Black "rithwik2002"]
[Result "0-1"]
[WhiteElo "1906"]
[BlackElo "1784"]
[TimeControl "180+2"]
[EndTime "13:51:12 PDT"]
[Termination "rithwik2002 won on time"]

1. e4 {[%clk 0:03:02]} 1... e6 {[%clk 0:03:01.1]} 2. d3 {[%clk 0:02:55.7]} 2...
d5 {[%clk 0:03:01.1]} 3. Nd2 {[%clk 0:02:52.3]} 3... Nf6 {[%clk 0:02:53.8]} 4.
g3 {[%clk 0:02:48.2]} 4... Nc6 {[%clk 0:02:53.3]} 5. Bg2 {[%clk 0:02:49.1]} 5...
dxe4 {[%clk 0:02:49.9]} 6. dxe4 {[%clk 0:02:48.8]} 6... e5 {[%clk 0:02:45.9]} 7.
Ngf3 {[%clk 0:02:49.4]} 7... Bc5 {[%clk 0:02:46.5]} 8. O-O {[%clk 0:02:49.6]}
8... O-O {[%clk 0:02:47.6]} 9. Qe2 {[%clk 0:02:49.2]} 9... Qe7 {[%clk
0:02:47.1]} 10. h3 {[%clk 0:02:38.6]} 10... a5 {[%clk 0:02:46.9]} 11. c3 {[%clk
0:02:29.3]} 11... b6 {[%clk 0:02:40.4]} 12. Rd1 {[%clk 0:02:26.8]} 12... Rd8
{[%clk 0:02:39.7]} 13. Nc4 {[%clk 0:02:22.6]} 13... Ba6 {[%clk 0:02:38.1]} 14.
Bg5 {[%clk 0:02:21]} 14... Rxd1+ {[%clk 0:01:36.7]} 15. Rxd1 {[%clk 0:02:19.8]}
15... a4 {[%clk 0:01:28.8]} 16. Bf1 {[%clk 0:01:39.5]} 16... Na5 {[%clk
0:01:25.3]} 17. Nfxe5 {[%clk 0:01:32.9]} 17... Qe6 {[%clk 0:01:22]} 18. b3
{[%clk 0:01:18]} 18... axb3 {[%clk 0:01:15.4]} 19. axb3 {[%clk 0:01:19.9]} 19...
Nxc4 {[%clk 0:01:07.4]} 20. Nxc4 {[%clk 0:01:17.7]} 20... Nxe4 {[%clk
0:01:02.7]} 21. Bd2 {[%clk 0:00:14.7]} 21... Nxf2 {[%clk 0:00:47.6]} 22. Qxe6
{[%clk 0:00:12.2]} 22... fxe6 {[%clk 0:00:49.5]} 23. Ra1 {[%clk 0:00:07.9]}
23... Ng4+ {[%clk 0:00:38.2]} 0-1

[Event "*** Qualifier 3: Titled Tuesday 3|2 Blitz"]
[Site "Chess.com"]
[Date "2017.04.18"]
[Round "4"]
[White "PowerThinking2650"]
[Black "Robin-Side"]
[Result "1-0"]
[WhiteElo "2228"]
[BlackElo "2308"]
[TimeControl "180+2"]
[EndTime "13:51:24 PDT"]
[Termination "PowerThinking2650 won by resignation"]

1. e4 {[%clk 0:03:02]} 1... c5 {[%clk 0:02:10.3]} 2. Nf3 {[%clk 0:03:00.7]} 2...
Nc6 {[%clk 0:02:10.8]} 3. d4 {[%clk 0:03:02]} 3... cxd4 {[%clk 0:02:12.4]} 4.
Nxd4 {[%clk 0:03:03.9]} 4... e5 {[%clk 0:02:13.6]} 5. Nb5 {[%clk 0:03:04.2]}
5... d6 {[%clk 0:02:14.3]} 6. N1c3 {[%clk 0:03:03.1]} 6... a6 {[%clk 0:02:15]}
7. Na3 {[%clk 0:03:04.3]} 7... b5 {[%clk 0:02:16.6]} 8. Nd5 {[%clk 0:03:05.5]}
8... Nge7 {[%clk 0:02:17.9]} 9. c4 {[%clk 0:03:06.8]} 9... Nd4 {[%clk
0:02:18.6]} 10. cxb5 {[%clk 0:03:04.7]} 10... Nxd5 {[%clk 0:02:19.1]} 11. exd5
{[%clk 0:03:06]} 11... Bd7 {[%clk 0:02:19.6]} 12. bxa6 {[%clk 0:03:00.8]} 12...
Qa5+ {[%clk 0:02:18.6]} 13. Bd2 {[%clk 0:02:53.8]} 13... Qxd5 {[%clk 0:02:18.8]}
14. Nc2 {[%clk 0:02:43.1]} 14... Qe4+ {[%clk 0:02:10.6]} 15. Ne3 {[%clk
0:02:40.8]} 15... Be7 {[%clk 0:02:09.6]} 16. Bc4 {[%clk 0:02:23.6]} 16... Bc6
{[%clk 0:01:48]} 17. O-O {[%clk 0:02:07.8]} 17... Nf5 {[%clk 0:01:28.6]} 18. Qb1
{[%clk 0:01:07.3]} 18... Nxe3 {[%clk 0:00:42]} 19. Qxe4 {[%clk 0:01:06.5]} 19...
Bxe4 {[%clk 0:00:42.9]} 20. Bb5+ {[%clk 0:01:07.7]} 20... Kf8 {[%clk 0:00:40.2]}
21. Bxe3 {[%clk 0:01:08.7]} 21... f5 {[%clk 0:00:38.7]} 22. f3 {[%clk 0:01:07]}
22... Bd5 {[%clk 0:00:37.5]} 23. Rfd1 {[%clk 0:01:07]} 23... Be6 {[%clk
0:00:38]} 24. a7 {[%clk 0:01:08]} 24... Kf7 {[%clk 0:00:29]} 25. Bc6 {[%clk
0:01:08]} 25... d5 {[%clk 0:00:25.2]} 26. Rxd5 {[%clk 0:01:00.7]} 26... Bxd5
{[%clk 0:00:21.3]} 27. Bxd5+ {[%clk 0:01:01.6]} 27... Kf6 {[%clk 0:00:22.5]} 28.
Bxa8 {[%clk 0:01:00.9]} 28... Rxa8 {[%clk 0:00:23.9]} 29. Rc1 {[%clk 0:00:59.7]}
29... Ke6 {[%clk 0:00:17]} 30. a3 {[%clk 0:00:57.6]} 30... h6 {[%clk 0:00:13.3]}
31. b4 {[%clk 0:00:58.1]} 31... Bg5 {[%clk 0:00:11.2]} 32. Bxg5 {[%clk
0:00:54.9]} 32... hxg5 {[%clk 0:00:13.1]} 33. Rc7 {[%clk 0:00:50.2]} 33... g6
{[%clk 0:00:11.9]} 34. b5 {[%clk 0:00:50.7]} 34... Kd6 {[%clk 0:00:13.2]} 35. b6
{[%clk 0:00:52]} 1-0

[Event "*** Qualifier 3: Titled Tuesday 3|2 Blitz"]
[Site "Chess.com"]
[Date "2017.04.18"]
[Round "4"]
[White "MFBerna"]
[Black "blitzcopter"]
[Result "1-0"]
[WhiteElo "2174"]
[BlackElo "2122"]
[TimeControl "180+2"]
[EndTime "13:51:36 PDT"]
[Termination "MFBerna won by resignation"]

1. e4 {[%clk 0:03:01.9]} 1... c6 {[%clk 0:03:00.1]} 2. d4 {[%clk 0:03:00.1]}
2... d5 {[%clk 0:03:00.8]} 3. e5 {[%clk 0:03:01.5]} 3... Bf5 {[%clk 0:03:01.1]}
4. Nf3 {[%clk 0:03:02.7]} 4... e6 {[%clk 0:02:56.2]} 5. Be2 {[%clk 0:03:03.3]}
5... c5 {[%clk 0:02:57.4]} 6. O-O {[%clk 0:03:00.4]} 6... Nc6 {[%clk 0:02:57.3]}
7. c4 {[%clk 0:02:57.2]} 7... dxc4 {[%clk 0:02:48.7]} 8. Be3 {[%clk 0:02:54.6]}
8... cxd4 {[%clk 0:02:38.4]} 9. Nxd4 {[%clk 0:02:56.4]} 9... Nxd4 {[%clk
0:02:39.7]} 10. Bxd4 {[%clk 0:02:57.6]} 10... Ne7 {[%clk 0:02:40.9]} 11. Bxc4
{[%clk 0:02:57.7]} 11... Nc6 {[%clk 0:02:40.4]} 12. Bc3 {[%clk 0:02:57.2]} 12...
Be7 {[%clk 0:02:22.8]} 13. Na3 {[%clk 0:02:57.3]} 13... a6 {[%clk 0:02:20.8]}
14. Qb3 {[%clk 0:02:54.3]} 14... Qc7 {[%clk 0:02:16.2]} 15. Rac1 {[%clk
0:02:53.5]} 15... O-O {[%clk 0:02:16.3]} 16. f4 {[%clk 0:02:53.2]} 16... Rac8
{[%clk 0:02:07.4]} 17. Be2 {[%clk 0:02:49.7]} 17... Bc5+ {[%clk 0:02:04.8]} 18.
Kh1 {[%clk 0:02:49.5]} 18... Qb6 {[%clk 0:02:03]} 19. Qxb6 {[%clk 0:02:44.8]}
19... Bxb6 {[%clk 0:02:04.9]} 20. Nc4 {[%clk 0:02:44.4]} 20... Bc5 {[%clk
0:02:01.9]} 21. Rfd1 {[%clk 0:02:43.3]} 21... Rfd8 {[%clk 0:02:00.7]} 22. Bf3
{[%clk 0:02:42.8]} 22... Bd3 {[%clk 0:01:46.8]} 23. Nd6 {[%clk 0:02:42.9]} 23...
Bxd6 {[%clk 0:01:43.4]} 24. Rxd3 {[%clk 0:02:42.6]} 24... Be7 {[%clk 0:01:38.6]}
25. Rcd1 {[%clk 0:02:42.6]} 25... b5 {[%clk 0:01:14.8]} 26. Rxd8+ {[%clk
0:02:32.9]} 26... Rxd8 {[%clk 0:01:15.5]} 27. Rxd8+ {[%clk 0:02:31.6]} 27...
Nxd8 {[%clk 0:01:17.4]} 28. Kg1 {[%clk 0:02:30.5]} 28... Bc5+ {[%clk 0:01:18.8]}
29. Kf1 {[%clk 0:02:30.9]} 29... Kf8 {[%clk 0:01:20.7]} 30. Ke2 {[%clk 0:02:30]}
30... Ke7 {[%clk 0:01:22.1]} 31. Kd3 {[%clk 0:02:24.9]} 31... Kd7 {[%clk
0:01:23]} 32. a4 {[%clk 0:02:22.5]} 32... Nc6 {[%clk 0:01:15.1]} 33. b3 {[%clk
0:02:20.3]} 33... Nb4+ {[%clk 0:01:09.8]} 34. Ke4 {[%clk 0:02:13.8]} 34... Nc6
{[%clk 0:00:54.9]} 35. Be2 {[%clk 0:02:11]} 35... bxa4 {[%clk 0:00:54.5]} 36.
bxa4 {[%clk 0:02:12.9]} 36... a5 {[%clk 0:00:55.5]} 37. Bb5 {[%clk 0:02:13.3]}
37... Bb6 {[%clk 0:00:51.9]} 38. Kd3 {[%clk 0:02:08.5]} 38... Kc7 {[%clk
0:00:51.6]} 39. Kc4 {[%clk 0:02:08.9]} 39... Bg1 {[%clk 0:00:46.6]} 40. h3
{[%clk 0:02:05.6]} 40... Bh2 {[%clk 0:00:47.2]} 41. Bd2 {[%clk 0:02:05]} 41...
Kb6 {[%clk 0:00:42.1]} 42. Be3+ {[%clk 0:02:05.4]} 42... Kc7 {[%clk 0:00:42.1]}
43. g4 {[%clk 0:02:04.2]} 43... g5 {[%clk 0:00:34.9]} 44. fxg5 {[%clk
0:01:45.3]} 44... Nxe5+ {[%clk 0:00:35.3]} 45. Kc5 {[%clk 0:01:43.2]} 45... Nf3
{[%clk 0:00:26.1]} 46. Be8 {[%clk 0:01:39.9]} 46... Bd6+ {[%clk 0:00:23.4]} 47.
Kb5 {[%clk 0:01:40.2]} 47... Be7 {[%clk 0:00:25]} 48. Bb6+ {[%clk 0:01:34.8]}
48... Kb7 {[%clk 0:00:20.7]} 49. Bc6+ {[%clk 0:01:34.2]} 49... Kb8 {[%clk
0:00:21.2]} 50. Bxf3 {[%clk 0:01:36.1]} 1-0